Cogmind - Beta 14 X2 @@@ ROGUE MODE // 2024.07.31 @ 20:30:59 Player: szymekc Result: Destroyed by 6R-NTN(R) with Subdweller Laser Performance ------------- Evolutions (0) 0 Regions Visited (2) 400 Robots Destroyed (46) 230 Value Destroyed (896) 896 Prototype IDs (2) 40 Alien Tech Used (0) 0 Bonus (2) 2 TOTAL SCORE: 1568 Bonus ------- High Alert Combat Kills 2 Cogmind --------- Core Integrity 0/250 Matter 300/300 Energy 99/100 System Corruption 0% Temperature Cool (6) Movement Rolling (100) Location -10/Subcaves Parts ------- > --- POWER (1) -------- (None) > --- PROPULSION (2) --- Light Treads Compact Wheel > --- UTILITY (2) ------ (None) > --- WEAPON (2) ------- Heavy Hammer > --- INVENTORY (5) ---- High-capacity Storage Unit Seismic Detector Hacking Suite Beam Cannon Battle Rifle Peak State ------------ > --- POWER ------------ Light Nuclear Core > --- PROPULSION ------- Wheel Compact Wheel > --- UTILITY ---------- Scrap Shield > --- WEAPON ----------- Light EM Pulse Cannon Heavy Hammer > --- INVENTORY -------- Large Storage Unit Seismic Detector Beam Cannon Light Assault Rifle [Rating: 13] Favorites ----------- Power Improved Ion Engine Engine Improved Ion Engine Power Core Light Nuclear Core Propulsion Light Treads Treads Light Treads Leg Aluminum Leg Wheel Compact Wheel Utility Seismic Detector Device Seismic Detector Storage Small Storage Unit Protection Scrap Shield Weapon Assault Rifle Energy Gun EM Pulse Gun Energy Cannon Light EM Pulse Cannon Ballistic Gun Assault Rifle Launcher Grenade Launcher Impact Weapon Heavy Hammer Build | -11 -10 -10 ------- Run | Yrd Mat Sub Slots Evolved . | . . . Power . | . . . Propulsion . | . . . Utility . | . . . Weapon . | . . . Parts Attached 40 | 3 25 12 Power 4 | . 2 2 Engine 3 | . 2 1 Core 1 | . . 1 Reactor . | . . . Propulsion 9 | 2 4 3 Treads 7 | 2 4 1 Leg . | . . . Wheel 2 | . . 2 Hover . | . . . Flight . | . . . Utility 4 | . 3 1 Device 1 | . 1 . Storage 2 | . 2 . Processor . | . . . Hackware . | . . . Protection 1 | . . 1 Artifact . | . . . Weapon 23 | 1 16 6 Energy Gun . | . . . Energy Cannon 8 | . 4 4 Ballistic Gun 6 | 1 5 . Ballistic Cannon . | . . . Launcher 3 | . 2 1 Special Weapon . | . . . Impact Weapon 6 | . 5 1 Slashing Weapon . | . . . Piercing Weapon . | . . . Special Melee Weapon . | . . . Unidentified Prototypes . | . . . Parts Lost 9 | . . 9 Power 2 | . . 2 Propulsion 2 | . . 2 Utility 1 | . . 1 Weapon 4 | . . 4 Highest Loss Streak 5 | . . 5 To Critical Strikes . | . . . Average Slot Usage (%) 97 | . 99 89 Engine 13 | . 14 9 Treads 25 | . 27 15 Wheel 1 | . . 9 Device 12 | . 13 8 Storage 13 | . 14 8 Energy Cannon 9 | . 7 18 Ballistic Gun 14 | . 17 . Impact Weapon 3 | . 2 8 Naked Turns . | . . . Heaviest Build 56 | 13 56 56 Greatest Support 40 | 40 40 40 Greatest Overweight (x) 5 | . 1 5 Average Overweight (x) . | . . 1 Largest Inventory Capacity 20 | 8 20 20 Average Capacity 11 | 8 11 14 Most Carried 15 | 7 15 15 Average Carried 9 | 5 10 9 Final Capacity 20 | 8 20 5 Final Carried 15 | 7 15 5 Class Distribution -------------------- 100% | Mutant Dominant Class ---------------- Mutant | -10/Materials Mutant | -10/Subcaves Resources | -11 -10 -10 ----------- Run | Yrd Mat Sub Matter Collected 901 | 346 350 205 Remotely . | . . . Salvage Created 1088 | 199 492 397 Parts 92 | 28 46 18 Haulers Intercepted 1 | . 1 . Recyclers Shooed 1 | . 1 . Parts Field Recycled . | . . . Retrieved Matter . | . . . Parts Self-Destructed 5 | . . 5 Prevented . | . . . Kills | -11 -10 -10 ------- Run | Yrd Mat Sub Combat Hostiles Destroyed 29 | . 17 12 Melee 2 | . . 2 Guns 8 | . 8 . Cannons 7 | . 5 2 AOE 8 | . 4 4 Classes Destroyed 11 | 3 6 2 Worker 2 | 1 1 . Builder 2 | . 2 . Tunneler 8 | 8 . . Hauler 1 | . 1 . Recycler 1 | 1 . . Operator 1 | . 1 . Turret 1 | . . 1 Watcher 1 | . 1 . Swarmer 13 | . 9 4 Grunt 8 | . 8 . Subdweller 8 | . . 8 Best Kill Streak 5 | 4 3 5 Combat Bots Only 4 | . 3 4 Max Kills in Single Turn 2 | 1 2 1 Gunslinging . | . . . Exploded 2 | . 2 1 Melee 1 | . . 1 Uniques/NPCs Destroyed . | . . . Combat | -11 -10 -10 -------- Run | Yrd Mat Sub Hostile Shots Fired 171 | . 65 106 Missed 65 | . 29 36 Damage Taken 1845 | . 426 1419 Core 250 | . 45 205 Absorbed by Shields . | . . . Regen/Repaired (Parts) 94 | . 94 . Core Remaining (%) 100 | 100 . . Volleys Fired 96 | 29 46 21 Largest 2 | 2 2 2 Hottest 112 | 40 112 112 Shots Fired 175 | 58 85 32 Gun 116 | 58 58 . Cannon 47 | . 20 27 Launcher 12 | . 7 5 Special . | . . . Kinetic 116 | 58 58 . Thermal 1 | . . 1 Explosive 12 | . 7 5 Electromagnetic 46 | . 20 26 Robot Hit Streak 15 | 7 15 8 Robot Miss Streak 5 | 5 3 2 Penetration Max . | . . . Secondary Targets 1 | . 1 . Max Gunslinging Chain 1 | . 1 . Shots Hit Robots 134 | 33 59 42 Core Hits 61 | 16 29 16 Critical Kills 1 | . . 1 Critical Parts Destroyed 1 | . . 1 Critical Strikes 3 | . 1 2 Corrupt 1 | . 1 . Smash 2 | . . 2 Melee Attacks 46 | . 21 25 Impact 46 | . 21 25 Slashing . | . . . Piercing . | . . . Sneak Attacks 3 | . 2 1 Combat Hostiles . | . . . Follow-up Attacks . | . . . Damage Inflicted 3046 | 345 1306 1395 Guns 807 | 345 462 . Cannons 654 | . 255 399 Explosions 643 | . 415 228 Melee 916 | . 148 768 Ramming 26 | . 26 . Kinetic 807 | 345 462 . Thermal 18 | . . 18 Explosive 643 | . 415 228 Electromagnetic 636 | . 255 381 Impact 916 | . 148 768 Slashing . | . . . Piercing . | . . . Highest Corruption . | . . . Average Corruption . | . . . Corruption Purged . | . . . Corruption Blocked . | . . . Overload Shots . | . . . Overflow Damage 219 | . 108 111 Projectiles 10 | . 10 . Explosions . | . . . Melee 209 | . 98 111 Knockbacks 2 | . . 2 Impact 2 | . . 2 Kinetic . | . . . Secondary . | . . . Self-Inflicted Damage 52 | . 28 24 Shots 2 | . 1 1 Rammed 5 | . 5 . Targets Rammed 6 | . 6 . Kicked . | . . . Crushed 1 | . 1 . Highest Temperature 216 | . 216 12 Average Temperature 31 | . 32 9 Received Heat Transfer 411 | . 177 234 Siege Activations . | . . . Robots Corrupted 5 | . 2 3 Combat Hostiles 3 | . . 3 Parts Fried 10 | . 6 4 Impact Corruptions 9 | . 4 5 Robots Melted . | . . . Combat Hostiles . | . . . Parts Melted . | . . . Heat Transferred 37 | . . 37 Parts Sabotaged . | . . . Parts Stolen . | . . . Parts Stripped . | . . . Power Chain Reactions . | . . . Alert | -11 -10 -10 ------- Run | Yrd Mat Sub Peak Influence 479 | 50 479 . Initial 32 | . 32 . Average 142 | 30 162 . Maximum Alert Level 2 | . 2 . Low Security (%) 74 | 100 70 . Level 1 13 | . 15 . Level 2 11 | . 13 . Level 3 . | . . . Level 4 . | . . . Level 5 . | . . . High Security . | . . . Max Security . | . . . Squads Dispatched 3 | . 3 . Investigation 2 | . 2 . Extermination . | . . . Reinforcement 1 | . 1 . Assault . | . . . Garrison . | . . . Intercept . | . . . Searches Triggered . | . . . Construction Impeded . | . . . Haulers Reinforced . | . . . Active Scanning Responses . | . . . Cargo Convoy Interrupts . | . . . Stealth | -11 -10 -10 --------- Run | Yrd Mat Sub Distress Signals 3 | . 3 . Communications Jammed . | . . . Distress Signals . | . . . Times Spotted 50 | . 32 18 Peak Tracking Total 4 | . 4 4 Tactical Retreats 5 | . 3 2 Traps | -11 -10 -10 ------- Run | Yrd Mat Sub Traps Triggered 1 | . 1 . Indirectly . | . . . Trap Hack Attempts . | . . . Triggered . | . . . Disarmed . | . . . Reprogrammed . | . . . Reused . | . . . Traps Extracted . | . . . Installed . | . . . Triggered 1 | . 1 . Machines | -11 -10 -10 ---------- Run | Yrd Mat Sub Machines Disabled 3 | . 1 2 Max in Single Turn 2 | . 1 2 Machines Repaired . | . . . Machines Dismantled . | . . . Machines Sabotaged . | . . . Overloaded Fab Kills . | . . . Hacking | -11 -10 -10 --------- Run | Yrd Mat Sub Machines Accessed 10 | . 10 . Terminals 7 | . 7 . Fabricators . | . . . Repair Stations 1 | . 1 . Recycling Units 2 | . 2 . Scanalyzers . | . . . Garrison Access . | . . . Total Hacks 31 | . 31 . Successful 19 | . 19 . Failed 11 | . 11 . Catastrophic . | . . . Database Lockouts 1 | . 1 . Manual 19 | . 19 . Terminals 26 | . 26 . Fabricators . | . . . Repair Stations 2 | . 2 . Recycling Units 3 | . 3 . Scanalyzers . | . . . Garrison Access . | . . . Terminal Hacks 9 | . 9 . Robot Analysis 2 | . 2 . Prototype ID Bank 1 | . 1 . Branch Access Points 1 | . 1 . Terminal Index 1 | . 1 . Locate Traps 1 | . 1 . Hauler Manifests 1 | . 1 . Zone Layout 2 | . 2 . Fabricator Hacks . | . . . Repair Station Hacks 2 | . 2 . Scan Component 1 | . 1 . Repair 1 | . 1 . Recycling Unit Hacks . | . . . Scanalyzer . | . . . Garrison Access Hacks . | . . . Unauthorized Hacks 8 | . 8 . Terminals 6 | . 6 . Skim 6 | . 6 . Fabricators . | . . . Repair Stations . | . . . Recycling Units 2 | . 2 . Tunnel 2 | . 2 . Scanalyzers . | . . . Garrison Access . | . . . Data Cores Recovered . | . . . Used . | . . . Hacking Detections 8 | . 8 . Full Trace Events 1 | . 1 . Feedback Events . | . . . Feedback Blocked . | . . . Robot Schematics Acquired . | . . . Robots Built . | . . . Authchips . | . . . Time . | . . . Total Robot Build Rating . | . . . Part Schematics Acquired . | . . . Parts Built . | . . . Authchips . | . . . Time . | . . . Total Part Build Rating . | . . . Parts Repaired 1 | . 1 . Time 26 | . 26 . Parts Recycled . | . . . Recycled Matter . | . . . Retrieved Matter . | . . . Retrieved Components . | . . . Parts Scanalyzed . | . . . Part Schematics Acquired . | . . . Parts Damaged . | . . . Bothacking | -11 -10 -10 ------------ Run | Yrd Mat Sub Used RIF Installer . | . . . Robots Hacked . | . . . Non-combat . | . . . Combat . | . . . Robot Hacks Applied . | . . . Relay Couplers Released . | . . . Fabnet Peak Effective % . | . . . Robots Rewired . | . . . Allies Hacked . | . . . Hacks Repelled . | . . . Allies | -11 -10 -10 -------- Run | Yrd Mat Sub Total Allies . | . . . Largest Group . | . . . Highest-Rated Group . | . . . Highest-Rated Ally . | . . . Total Orders . | . . . Ally Attacks . | . . . Total Damage . | . . . Kills . | . . . Allies Corrupted . | . . . Allies Melted . | . . . Intel | -11 -10 -10 ------- Run | Yrd Mat Sub Robot Analysis Total 2 | . 2 . Derelict Logs Recovered . | . . . Drone Launches . | . . . Drone Recoveries . | . . . Exploration | -11 -10 -10 ------------- Run | Yrd Mat Sub Turns Passed 2859 | 372 2040 447 Spaces Moved 975 | 88 722 165 Core . | . . . Treads 839 | 76 722 41 Legs 12 | 12 . . Wheels 124 | . . 124 Hover . | . . . Flight . | . . . Fastest Speed 90 | 120 160 90 Average Speed 164 | 154 169 151 Slowest Speed 240 | 160 240 240 Overloaded Moves . | . . . Propulsion Burnouts . | . . . Robots Hopped . | . . . Cave-ins Triggered . | . . . Exploration Rate (%) 41 | 8 99 16 Regions Visited 2 Branch Regions 1 Pre-discovered Areas 2 | . 2 . Known Exits Taken . | . . . Unknown Exits Taken 2 | 1 1 . Scrap Searched . | . . . Spaces Dug 16 | . 16 . Terrain Destroyed 55 | . 28 27 Melee 12 | . 12 . Projectile . | . . . AOE 43 | . 16 27 Terrain Rammed . | . . . Walls Destroyed . | . . . Machines Disabled . | . . . Actions | -11 -10 -10 --------- Run | Yrd Mat Sub Total 1977 | 272 1416 289 Wait 781 | 146 578 57 Move 973 | 87 721 165 Hop . | . . . Pick Up 19 | 4 12 3 Fast Attach 6 | . 4 2 Attach 8 | . 1 7 Detach 1 | . . 1 Swap 26 | 3 20 3 Drop 15 | 3 7 5 Fire 96 | 29 46 21 Melee 46 | . 21 25 Ram . | . . . Kick . | . . . Crush 6 | . 6 . Escape Stasis . | . . . Rewire . | . . . Trap . | . . . Miscellaneous . | . . . Route ------- -11/Scrapyard -10/Materials (discovered 6 exits: [*Mat x3] / *Min x2 / [*Sub]) -10/Subcaves (discovered 3 exits: Mat x2 / *Rec) History --------- Turn | Location | Event 1 | -11/Scrapyard | Discovered new exit (range 3) 373 | -11/Scrapyard | Entered Materials 374 | -10/Materials | Build established: Mutant 483 | -10/Materials | Discovered new exit (range 9) 1002 | -10/Materials | Discovered new exit (range 14) 1197 | -10/Materials | Discovered new exit (range 3) 1537 | -10/Materials | Central database locked down 1660 | -10/Materials | Discovered new exit (range 16) 2016 | -10/Materials | Repaired Lgt. Treads 2096 | -10/Materials | Discovered new exit (range 6) 2176 | -10/Materials | Identified exit to Mines 2250 | -10/Materials | Loaded intel: 28 non-interactive machine locations 2316 | -10/Materials | Learned location of 2 exits from Subcaves 2407 | -10/Materials | Discovered new exit (range 3) 2413 | -10/Materials | Entered Subcaves 2414 | -10/Subcaves | Identified exit to Recycling 2415 | -10/Subcaves | Identified exit to Materials 2541 | -10/Subcaves | Ambushed by Subdwellers from Twisted Machinery 2562 | -10/Subcaves | Ambushed by Subdweller buried in earth 2593 | -10/Subcaves | Core integrity fell below 50% 2623 | -10/Subcaves | Lost 5 parts (2n3w) 2814 | -10/Subcaves | Visited 4L-MR0's lab 2853 | -10/Subcaves | Core integrity fell below 20% 2860 | -10/Subcaves | Destroyed by 6R-NTN(R) with Subdweller Laser Last Messages --------------- 02740_ Dropped Lgt. Assault Rifle. 02740_ Acquired Battle Rifle. 02760_ Acquired 10 matter. 02821_ RB-PKW(R) suffers critical hit (Smash). 02821_ Destroyed Sub. Optics. 02821_ RB-PKW(R) system corrupted by crushing effect. 02822_ RB-PKW(R) system terminally corrupted. 02822_ Disposable Heat Sink fried. 02822_ Sub. Monowheel fried. 02823_ 6R-NTN(R) affixes Scrap Shield Fragment to Scrap Shield. 02842_ Scrap Shield destroyed. 02843_ Lgt. EM Pulse Cannon destroyed. 02852_ Destroyed Disposable Heat Sink. 02852_ HL-NNQ(R) system corrupted by crushing effect. 02854_ HL-NNQ(R) heat spikes uncontrollably. 02855_ Lgt. Nuclear Core destroyed. 02857_ HL-NNQ(R) overheating. 02857_ Destroyed Sub. Monowheel. 02857_ HL-NNQ(R) system corrupted by crushing effect. 02860_ HL-NNQ(R) heat damages core (-5). Map ----- +----------------------------------------------------+ | ???????????????# | | ???????????????## ## ## | | ????????????????## #### #### | | ?????????????????## ### ##### | | ?????????????????## #### | | ???????????????### ### | | ???????????????# | | ??????????????## | | ??????????????# | | ??????????????# ## | | ??????????????# #### | | ??????????????# ### ##??# | | ??????????##??# ##?####???# | | ?????##??? ##### ######????## | | ????? =???# "?## ## #?????# | | ?????""##?#" ?# ## ### #?????? | | ?????# ## ###< #? ##?# ##????# | | ?????" #?# # < #? #??## &&###### | | ????#"" #?# # #??## & %## | | ?????"X #?# #??# &!!= | | ?????"" #?# #" ##??# # ### | | ?????? #### ## #???## # #?## | | ??????? ##" <# #??? # #?# | | ???????#+## <## ? #?## | | ???????#%## <## ??# | | ???????#&%@R ### ## | | ???????#& <<##?? ######### | | ???????#######??? ##???????# ## | | ????????????????? #????????# ?# | | ????????????????? ##?????????###?? | | ?????????????????###??????????????? | | ??????????????????????????????????? | | ??????????????????????????????????? | | ??????????????????????????????????? | | ??????????????????????????????????? | | ??????????????????????????????????? | | ??????????????????????????????????? | | ??????????????????????????????????? | | ??????????????????????????????????? | | ??????????????????????????????????? | | ??????????????????????????????????? | | ??????????????????????????????????? | | ??????????????????????????????????? | | ??????????????????????????????????? | | ??????????????????????????????????? | | ??????????????????????????????????? | | ??????????????????????????????????? | | ??????????????????????????????????? | | ??????????????????????????????????? | | ??????????????????????????????????? | +----------------------------------------------------+ Best States ------------- Heat Dissipation 25 Energy Generation 14 Energy Capacity 265 Matter Stores 300 Matter Capacity 300 Sight Range 16 Terrain Scan Density 10 Armor Coverage 800 Evasion (%) 50 Recoil Reduction 2 Item Schematics ----------------- None Robot Schematics ------------------ None Fabricated ------------ Nothing Alien Tech Used ----------------- None Achievements -------------- None Challenges ------------ None Game ------ Seed CompanionVisualMount Manual? 0 Play Time 00:19:08 Cumulative 326.1 hours Start 2024.07.31 @ 20:11:35 End 2024.07.31 @ 20:30:59 Sessions 1 Manual Loads 0 Difficulty Rogue Special Mode None Game No. 120 Rogue 118 Adventurer 2 Explorer 0 Win Type - Total 15 Types 6/0/7/1/0/0/0/1/0 Lore% 53 Gallery% 81 Achievement% 75 Wizard Run 0 Options --------- Layout 0 ASCII 0 Keyboard 0 Movement Numpad Keybinds 0 Fullscreen 2 Font 24/Smallcaps Map View 76x50 Zoom Use 0% Tactical HUD 1 Map Filters NONE Filters NONE Steam 1 RUN: 2574a36a-4c0c-4daf-bdb7-3276b32400c6